[Event "Open Cappelle-la-Grande"]
[Date "2025.02.15"]
[White "Girel, Joseph"]
[Black "Loiret, Stanislas"]
[WhiteElo "2484"]
[BlackElo "2163"]
[Round "1.1.8"]
[Result "1-0"]
[TimeControl "40/5400+30:1800+30"]

1. d4 {[%clk 1:30:16]} 1... Nf6 {[%clk 1:28:15]} 2. c4 {[%clk 1:30:20]} 2... e6
{[%clk 1:26:22]} 3. Nf3 {[%clk 1:30:16]} 3... d5 {[%clk 1:26:29]} 4. Nc3 {[%clk
1:29:29]} 4... c6 {[%clk 1:23:48]} 5. e3 {[%clk 1:29:11]} 5... Nbd7 {[%clk
1:24:04]} 6. Qc2 {[%clk 1:29:11]} 6... Bd6 {[%clk 1:22:57]} 7. Bd3 {[%clk
1:29:27]} 7... O-O {[%clk 1:22:41]} 8. O-O {[%clk 1:29:43]} 8... e5 {[%clk
1:17:21]} 9. cxd5 {[%clk 1:29:14]} 9... cxd5 {[%clk 1:17:41]} 10. e4 {[%clk
1:29:21]} 10... dxe4 {[%clk 1:03:31]} 11. Nxe4 {[%clk 1:29:13]} 11... Nxe4
{[%clk 1:03:38]} 12. Bxe4 {[%clk 1:29:33]} 12... h6 {[%clk 1:03:43]} 13. Be3
{[%clk 1:24:42]} 13... exd4 {[%clk 0:53:49]} 14. Bh7+ {[%clk 1:15:04]} 14... Kh8
{[%clk 0:54:11]} 15. Bxd4 {[%clk 1:15:30]} 15... Nf6 {[%clk 0:48:54]} 16. Bf5
{[%clk 1:14:59]} 16... Qa5 {[%clk 0:36:50]} 17. Bxc8 {[%clk 1:11:46]} 17...
Rfxc8 {[%clk 0:33:59]} 18. Qb3 {[%clk 1:09:22]} 18... Qd5 {[%clk 0:31:45]} 19.
Bxf6 {[%clk 1:06:34]} 19... Qxb3 {[%clk 0:30:37]} 20. Bxg7+ {[%clk 1:06:54]}
20... Kxg7 {[%clk 0:31:03]} 21. axb3 {[%clk 1:07:16]} 21... Be7 {[%clk 0:24:52]}
22. Rad1 {[%clk 1:01:55]} 22... Bf6 {[%clk 0:19:28]} 23. Rd2 {[%clk 0:55:11]}
23... Rd8 {[%clk 0:16:18]} 24. Rfd1 {[%clk 0:50:30]} 24... Rxd2 {[%clk 0:16:40]}
25. Rxd2 {[%clk 0:50:47]} 25... Rc8 {[%clk 0:17:05]} 26. g4 {[%clk 0:50:12]}
26... Rc5 {[%clk 0:09:49]} 27. Kg2 {[%clk 0:46:08]} 27... Rb5 {[%clk 0:10:13]}
28. Rd3 {[%clk 0:46:05]} 28... Bxb2 {[%clk 0:10:33]} 29. Nh4 {[%clk 0:46:19]}
29... h5 {[%clk 0:09:00]} 30. Nf5+ {[%clk 0:43:27]} 30... Kf6 {[%clk 0:08:00]}
31. Nd6 {[%clk 0:42:04]} 31... Rb4 {[%clk 0:07:38]} 32. gxh5 {[%clk 0:33:09]}
32... Ke6 {[%clk 0:07:43]} 33. Nc4 {[%clk 0:32:22]} 33... Bg7 {[%clk 0:08:01]}
34. h6 {[%clk 0:31:35]} 34... Bxh6 {[%clk 0:03:33]} 35. Rd6+ {[%clk 0:31:29]}
35... Ke7 {[%clk 0:03:33]} 36. Rxh6 {[%clk 0:31:41]} 36... Rxb3 {[%clk 0:03:59]}
37. h4 {[%clk 0:31:44]} 37... Kf8 {[%clk 0:04:02]} 38. Rh8+ {[%clk 0:27:48]}
38... Kg7 {[%clk 0:04:17]} 39. Rb8 {[%clk 0:27:56]} 39... Rb4 {[%clk 0:02:21]}
40. Nd6 {[%clk 0:27:32]} 40... Rb6 {[%clk 0:02:43]} 41. Nc8 {[%clk 0:27:01]}
41... Rg6+ {[%clk 0:01:57]} 42. Kf1 {[%clk 0:27:22]} 1-0

[Variant "Standard"]
[Site "Europe Echecs"]

[Event "Open Cappelle-la-Grande"]
[Date "2025.02.15"]
[White "Durand-Benmoussa, Roman"]
[Black "Degraeve, Jean-Marc"]
[WhiteElo "2152"]
[BlackElo "2482"]
[Round "1.1.9"]
[Result "1-0"]
[TimeControl "40/5400+30:1800+30"]

1. d4 {[%clk 1:30:57]} 1... Nf6 {[%clk 1:30:43]} 2. c4 {[%clk 1:31:09]} 2... g6
{[%clk 1:30:59]} 3. Nc3 {[%clk 1:31:29]} 3... Bg7 {[%clk 1:31:21]} 4. e4 {[%clk
1:31:49]} 4... d6 {[%clk 1:31:43]} 5. Nf3 {[%clk 1:32:09]} 5... O-O {[%clk
1:32:05]} 6. Be2 {[%clk 1:32:31]} 6... e5 {[%clk 1:31:35]} 7. O-O {[%clk
1:32:48]} 7... Bg4 {[%clk 1:31:31]} 8. d5 {[%clk 1:17:57]} 8... a5 {[%clk
1:31:12]} 9. Be3 {[%clk 1:11:16]} 9... Na6 {[%clk 1:30:32]} 10. Ne1 {[%clk
1:01:56]} 10... Bxe2 {[%clk 1:28:52]} 11. Qxe2 {[%clk 1:02:20]} 11... b6 {[%clk
1:27:14]} 12. f3 {[%clk 0:58:46]} 12... Nd7 {[%clk 1:24:48]} 13. Nd3 {[%clk
0:54:00]} 13... Nac5 {[%clk 1:24:41]} 14. Rab1 {[%clk 0:49:31]} 14... f5 {[%clk
1:24:33]} 15. b3 {[%clk 0:41:44]} 15... Nxd3 {[%clk 1:17:39]} 16. Qxd3 {[%clk
0:42:08]} 16... Nc5 {[%clk 1:18:05]} 17. Qd1 {[%clk 0:35:52]} 17... Qh4 {[%clk
1:15:35]} 18. a3 {[%clk 0:31:39]} 18... Bh6 {[%clk 1:13:24]} 19. Bf2 {[%clk
0:29:34]} 19... Qe7 {[%clk 1:12:21]} 20. b4 {[%clk 0:29:40]} 20... axb4 {[%clk
1:09:12]} 21. axb4 {[%clk 0:30:06]} 21... Nd7 {[%clk 1:09:33]} 22. Qc2 {[%clk
0:29:41]} 22... Qg5 {[%clk 0:56:33]} 23. Ra1 {[%clk 0:21:00]} 23... Rac8 {[%clk
0:52:22]} 24. Ra2 {[%clk 0:15:09]} 24... Nf6 {[%clk 0:51:46]} 25. c5 {[%clk
0:13:38]} 25... fxe4 {[%clk 0:51:37]} 26. Nxe4 {[%clk 0:13:37]} 26... Nxe4
{[%clk 0:51:57]} 27. Qxe4 {[%clk 0:12:56]} 27... bxc5 {[%clk 0:43:01]} 28. bxc5
{[%clk 0:13:22]} 28... Ra8 {[%clk 0:43:26]} 29. Rxa8 {[%clk 0:11:20]} 29... Rxa8
{[%clk 0:43:55]} 30. Qb4 {[%clk 0:11:28]} 30... dxc5 {[%clk 0:40:00]} 31. Qxc5
{[%clk 0:08:11]} 31... Qd8 {[%clk 0:40:28]} 32. Qc6 {[%clk 0:08:04]} 32... Bg7
{[%clk 0:37:17]} 33. Bh4 {[%clk 0:06:21]} 33... Qb8 {[%clk 0:37:16]} 34. Rc1
{[%clk 0:06:03]} 34... Qa7+ {[%clk 0:33:55]} 35. Kh1 {[%clk 0:06:18]} 35... Rb8
{[%clk 0:27:09]} 36. h3 {[%clk 0:03:46]} 36... Qb6 {[%clk 0:08:38]} 37. Qd7
{[%clk 0:03:43]} 37... Rb7 {[%clk 0:02:04]} 38. Qc8+ {[%clk 0:01:48]} 38... Bf8
{[%clk 0:02:32]} 39. Rc6 {[%clk 0:01:46]} 39... Qb4 {[%clk 0:00:39]} 40. Qe6+
{[%clk 0:01:41]} 40... Kg7 {[%clk 0:01:06]} 41. Qxe5+ {[%clk 0:01:53]} 1-0

[Variant "Standard"]
[Site "Europe Echecs"]

[Event "Open Cappelle-la-Grande"]
[Date "2025.02.15"]
[White "Suleymenov, Alisher"]
[Black "Dubuisson, Samuel"]
[WhiteElo "2481"]
[BlackElo "2148"]
[Round "1.1.10"]
[Result "1-0"]
[TimeControl "40/5400+30:1800+30"]

1. d4 {[%clk 1:30:57]} 1... d5 {[%clk 1:30:54]} 2. c4 {[%clk 1:31:21]} 2... e6
{[%clk 1:31:17]} 3. Nf3 {[%clk 1:30:20]} 3... Nf6 {[%clk 1:31:40]} 4. Nc3 {[%clk
1:30:30]} 4... Nbd7 {[%clk 1:30:27]} 5. Bf4 {[%clk 1:23:40]} 5... Bb4 {[%clk
1:29:53]} 6. cxd5 {[%clk 1:23:18]} 6... exd5 {[%clk 1:30:14]} 7. e3 {[%clk
1:23:42]} 7... c5 {[%clk 1:28:23]} 8. Bd3 {[%clk 1:24:01]} 8... c4 {[%clk
1:27:43]} 9. Bf5 {[%clk 1:18:14]} 9... O-O {[%clk 1:26:22]} 10. O-O {[%clk
1:18:26]} 10... Re8 {[%clk 1:20:07]} 11. Nb5 {[%clk 1:10:48]} 11... Nh5 {[%clk
1:08:45]} 12. Bd6 {[%clk 1:10:36]} 12... a6 {[%clk 0:45:01]} 13. Bxb4 {[%clk
1:00:56]} 13... axb5 {[%clk 0:45:26]} 14. Bc2 {[%clk 0:52:23]} 14... Nb8 {[%clk
0:31:56]} 15. Ne5 {[%clk 0:50:33]} 15... Nf6 {[%clk 0:31:15]} 16. a4 {[%clk
0:50:06]} 16... Nc6 {[%clk 0:31:05]} 17. Nxc6 {[%clk 0:44:58]} 17... bxc6 {[%clk
0:31:31]} 18. axb5 {[%clk 0:45:13]} 18... Rb8 {[%clk 0:24:04]} 19. Qd2 {[%clk
0:35:18]} 19... cxb5 {[%clk 0:18:49]} 20. Ra7 {[%clk 0:34:37]} 20... g6 {[%clk
0:08:33]} 21. Ba5 {[%clk 0:33:33]} 21... Ne4 {[%clk 0:02:17]} 22. Bxe4 {[%clk
0:33:47]} 22... Qg5 {[%clk 0:02:21]} 23. Bf3 {[%clk 0:33:32]} 23... Bf5 {[%clk
0:02:18]} 24. Bc7 {[%clk 0:33:32]} 24... Ra8 {[%clk 0:02:02]} 25. Rxa8 {[%clk
0:33:47]} 25... Rxa8 {[%clk 0:02:30]} 26. Bxd5 {[%clk 0:34:08]} 26... Ra2 {[%clk
0:02:20]} 27. Bf4 {[%clk 0:34:05]} 27... Qe7 {[%clk 0:02:00]} 28. e4 {[%clk
0:34:28]} 1-0

[Variant "Standard"]
[Site "Europe Echecs"]

[Event "Open Cappelle-la-Grande"]
[Date "2025.02.15"]
[White "Duhayon, Yves"]
[Black "Muthaiah AL"]
[WhiteElo "2148"]
[BlackElo "2474"]
[Round "1.1.11"]
[Result "0-1"]
[TimeControl "40/5400+30:1800+30"]

1. d4 {[%clk 1:30:58]} 1... Nf6 {[%clk 1:28:49]} 2. Nf3 {[%clk 1:31:20]} 2... d5
{[%clk 1:28:52]} 3. g3 {[%clk 1:30:29]} 3... c6 {[%clk 1:28:44]} 4. Bg2 {[%clk
1:30:52]} 4... Bf5 {[%clk 1:28:49]} 5. O-O {[%clk 1:31:01]} 5... e6 {[%clk
1:28:50]} 6. b3 {[%clk 1:29:53]} 6... h6 {[%clk 1:28:44]} 7. Bb2 {[%clk
1:30:17]} 7... Nbd7 {[%clk 1:28:55]} 8. c4 {[%clk 1:30:28]} 8... Bb4 {[%clk
1:23:33]} 9. a3 {[%clk 1:27:49]} 9... Ba5 {[%clk 1:23:45]} 10. Nc3 {[%clk
1:22:07]} 10... Ne4 {[%clk 1:20:08]} 11. b4 {[%clk 1:17:54]} 11... Bc7 {[%clk
1:16:40]} 12. c5 {[%clk 1:03:25]} 12... O-O {[%clk 1:10:59]} 13. Nxe4 {[%clk
0:59:51]} 13... Bxe4 {[%clk 1:08:41]} 14. Ne5 {[%clk 0:57:20]} 14... Bxe5 {[%clk
0:57:50]} 15. dxe5 {[%clk 0:57:14]} 15... Bxg2 {[%clk 0:57:41]} 16. Kxg2 {[%clk
0:57:38]} 16... b6 {[%clk 0:57:10]} 17. cxb6 {[%clk 0:53:50]} 17... Nxb6 {[%clk
0:51:54]} 18. Bd4 {[%clk 0:49:00]} 18... Nc4 {[%clk 0:51:44]} 19. Qd3 {[%clk
0:46:07]} 19... a5 {[%clk 0:48:56]} 20. Qc3 {[%clk 0:44:55]} 20... Qg5 {[%clk
0:44:59]} 21. f4 {[%clk 0:44:48]} 21... Qf5 {[%clk 0:41:37]} 22. Qd3 {[%clk
0:41:22]} 22... Qxd3 {[%clk 0:40:18]} 23. exd3 {[%clk 0:41:46]} 23... Nd2 {[%clk
0:40:36]} 24. Bc5 {[%clk 0:36:43]} 24... Nxf1 {[%clk 0:37:59]} 25. Rxf1 {[%clk
0:35:57]} 25... Rfb8 {[%clk 0:36:10]} 26. Rc1 {[%clk 0:34:29]} 26... axb4 {[%clk
0:29:58]} 27. Bxb4 {[%clk 0:34:48]} 27... c5 {[%clk 0:27:17]} 28. Rxc5 {[%clk
0:34:27]} 28... Rc8 {[%clk 0:27:33]} 29. d4 {[%clk 0:32:50]} 29... Rxc5 {[%clk
0:27:17]} 30. Bxc5 {[%clk 0:33:15]} 30... h5 {[%clk 0:23:57]} 31. h3 {[%clk
0:31:01]} 31... f6 {[%clk 0:23:38]} 32. Kf3 {[%clk 0:28:41]} 32... Kf7 {[%clk
0:23:31]} 33. g4 {[%clk 0:27:14]} 33... hxg4+ {[%clk 0:22:02]} 34. hxg4 {[%clk
0:27:38]} 34... fxe5 {[%clk 0:19:20]} 35. fxe5 {[%clk 0:27:56]} 35... Rh8 {[%clk
0:16:46]} 36. Kf4 {[%clk 0:22:28]} 36... Kg6 {[%clk 0:15:46]} 37. Kg3 {[%clk
0:21:53]} 37... Rh1 {[%clk 0:15:56]} 38. Bb6 {[%clk 0:17:09]} 38... Rb1 {[%clk
0:14:37]} 39. Bc5 {[%clk 0:17:26]} 39... Rb3+ {[%clk 0:10:56]} 40. Kf4 {[%clk
0:17:31]} 40... Kh6 {[%clk 0:10:24]} 41. g5+ {[%clk 0:17:56]} 41... Kh5 {[%clk
0:10:42]} 42. a4 {[%clk 0:17:15]} 42... Rb1 {[%clk 0:10:27]} 43. a5 {[%clk
0:17:38]} 43... Rf1+ {[%clk 0:10:44]} 44. Kg3 {[%clk 0:16:48]} 44... Ra1 {[%clk
0:11:01]} 45. Bb6 {[%clk 0:16:47]} 45... Kxg5 {[%clk 0:11:18]} 46. Bd8+ {[%clk
0:13:06]} 46... Kf5 {[%clk 0:11:37]} 0-1

[Variant "Standard"]
[Site "Europe Echecs"]

[Event "Open Cappelle-la-Grande"]
[Date "2025.02.15"]
[White "Eugene, Floryan"]
[Black "Varoquier, Romain"]
[WhiteElo "2468"]
[BlackElo "2148"]
[Round "1.1.12"]
[Result "1-0"]
[TimeControl "40/5400+30:1800+30"]

1. e4 {[%clk 1:29:53]} 1... e5 {[%clk 1:30:56]} 2. Nf3 {[%clk 1:30:18]} 2... Nc6
{[%clk 1:31:20]} 3. Bb5 {[%clk 1:30:30]} 3... f5 {[%clk 1:31:09]} 4. Nc3 {[%clk
1:27:14]} 4... fxe4 {[%clk 1:30:49]} 5. Nxe4 {[%clk 1:27:34]} 5... d5 {[%clk
1:31:05]} 6. Nxe5 {[%clk 1:27:38]} 6... dxe4 {[%clk 1:31:23]} 7. Nxc6 {[%clk
1:27:21]} 7... Qg5 {[%clk 1:31:16]} 8. Qe2 {[%clk 1:25:25]} 8... Nf6 {[%clk
1:31:05]} 9. Nxa7+ {[%clk 1:21:49]} 9... Bd7 {[%clk 1:30:15]} 10. Bxd7+ {[%clk
1:21:07]} 10... Nxd7 {[%clk 1:29:11]} 11. f4 {[%clk 1:20:30]} 11... Qc5 {[%clk
1:28:32]} 12. Nb5 {[%clk 1:20:29]} 12... Qxc2 {[%clk 1:28:12]} 13. d4 {[%clk
1:20:40]} 13... Qxe2+ {[%clk 1:27:49]} 14. Kxe2 {[%clk 1:21:03]} 14... Bd6
{[%clk 1:28:10]} 15. Rd1 {[%clk 1:09:31]} 15... Nf6 {[%clk 1:19:52]} 16. d5
{[%clk 1:07:35]} 16... O-O {[%clk 0:45:37]} 17. Be3 {[%clk 1:01:14]} 17... Ra5
{[%clk 0:35:37]} 18. a4 {[%clk 1:00:14]} 18... Ng4 {[%clk 0:25:14]} 19. Nxd6
{[%clk 0:57:15]} 19... cxd6 {[%clk 0:25:11]} 20. b4 {[%clk 0:57:38]} 20... Raa8
{[%clk 0:25:22]} 21. h3 {[%clk 0:57:50]} 21... Nf6 {[%clk 0:25:10]} 22. a5
{[%clk 0:51:43]} 22... Rfc8 {[%clk 0:25:05]} 23. Ra2 {[%clk 0:51:26]} 23... Rc4
{[%clk 0:23:21]} 24. Rb2 {[%clk 0:46:49]} 24... h5 {[%clk 0:23:16]} 25. Bf2
{[%clk 0:38:08]} 25... Kf7 {[%clk 0:17:19]} 26. Be1 {[%clk 0:37:03]} 26... Kg6
{[%clk 0:15:47]} 27. Ke3 {[%clk 0:29:31]} 27... Kf5 {[%clk 0:14:36]} 28. Rd4
{[%clk 0:29:16]} 28... Rac8 {[%clk 0:12:47]} 29. Bd2 {[%clk 0:26:41]} 29... g5
{[%clk 0:09:33]} 30. fxg5 {[%clk 0:26:36]} 30... Kxg5 {[%clk 0:09:36]} 31. b5
{[%clk 0:20:33]} 31... Kf5 {[%clk 0:07:58]} 32. a6 {[%clk 0:20:44]} 32... b6
{[%clk 0:06:39]} 33. Be1 {[%clk 0:14:31]} 33... Rc1 {[%clk 0:04:46]} 34. Bh4
{[%clk 0:13:17]} 34... R8c3+ {[%clk 0:04:01]} 35. Ke2 {[%clk 0:12:17]} 35... Nd7
{[%clk 0:00:46]} 36. Ra4 {[%clk 0:11:36]} 36... Rc8 {[%clk 0:00:48]} 37. Ke3
{[%clk 0:10:31]} 37... Nc5 {[%clk 0:00:53]} 38. Rf2+ {[%clk 0:10:48]} 38... Ke5
{[%clk 0:00:47]} 39. Bg3+ {[%clk 0:09:03]} 39... Kxd5 {[%clk 0:01:16]} 40. Rd4+
{[%clk 0:08:55]} 40... Ke6 {[%clk 0:01:44]} 41. Rxd6+ {[%clk 0:02:33]} 41... Ke7
{[%clk 0:02:12]} 42. Rff6 {[%clk 0:23:41]} 42... Rc3+ {[%clk 0:11:15]} 43. Kf2
{[%clk 0:20:59]} 43... e3+ {[%clk 0:09:03]} 44. Ke2 {[%clk 0:20:34]} 44... Rc2+
{[%clk 0:08:07]} 45. Kxe3 {[%clk 0:20:24]} 45... Rc3+ {[%clk 0:08:15]} 46. Kf4
{[%clk 0:20:38]} 46... Rxg3 {[%clk 0:08:12]} 47. Rc6 {[%clk 0:11:08]} 47... Rcg8
{[%clk 0:07:21]} 48. Rh6 {[%clk 0:11:10]} 48... Nd3+ {[%clk 0:02:40]} 49. Ke4
{[%clk 0:11:38]} 49... Nf2+ {[%clk 0:02:40]} 50. Kd4 {[%clk 0:11:53]} 50... Rd8+
{[%clk 0:01:17]} 51. Kc4 {[%clk 0:11:45]} 51... Rdd3 {[%clk 0:01:14]} 52. Rh7+
{[%clk 0:10:02]} 52... Kd8 {[%clk 0:01:43]} 53. Rxb6 {[%clk 0:09:26]} 53... Rc3+
{[%clk 0:02:00]} 54. Kd5 {[%clk 0:09:03]} 54... Rgd3+ {[%clk 0:01:08]} 55. Ke6
{[%clk 0:08:18]} 55... Re3+ {[%clk 0:01:20]} 56. Kf5 {[%clk 0:07:21]} 56... Rc5+
{[%clk 0:00:32]} 57. Kg6 {[%clk 0:06:38]} 57... Rg3+ {[%clk 0:00:36]} 58. Kh6
{[%clk 0:07:00]} 58... Kc8 {[%clk 0:00:33]} 59. a7 {[%clk 0:07:20]} 59... Ra3
{[%clk 0:00:50]} 60. Rb8# {[%clk 0:07:47]} 1-0

[Variant "Standard"]
[Site "Europe Echecs"]

[Event "Open Cappelle-la-Grande"]
[Date "2025.02.15"]
[White "Fondrat, Johan"]
[Black "Flom, Gabriel"]
[WhiteElo "2142"]
[BlackElo "2455"]
[Round "1.1.13"]
[Result "0-1"]
[TimeControl "40/5400+30:1800+30"]

1. e4 {[%clk 1:30:51]} 1... d6 {[%clk 1:30:54]} 2. d4 {[%clk 1:30:22]} 2... g6
{[%clk 1:30:49]} 3. c4 {[%clk 1:29:44]} 3... Nf6 {[%clk 1:30:29]} 4. Nc3 {[%clk
1:29:56]} 4... Bg7 {[%clk 1:30:56]} 5. Be2 {[%clk 1:29:16]} 5... O-O {[%clk
1:30:03]} 6. Be3 {[%clk 1:28:54]} 6... Nc6 {[%clk 1:29:40]} 7. d5 {[%clk
1:27:02]} 7... Ne5 {[%clk 1:30:07]} 8. f4 {[%clk 1:26:41]} 8... Neg4 {[%clk
1:30:30]} 9. Bd2 {[%clk 1:26:48]} 9... Nh6 {[%clk 1:27:23]} 10. h3 {[%clk
1:26:19]} 10... e6 {[%clk 1:27:41]} 11. dxe6 {[%clk 1:25:10]} 11... fxe6 {[%clk
1:28:07]} 12. g4 {[%clk 1:25:33]} 12... b5 {[%clk 1:28:34]} 13. cxb5 {[%clk
1:25:16]} 13... Bb7 {[%clk 1:28:01]} 14. Qc2 {[%clk 1:20:00]} 14... d5 {[%clk
1:28:22]} 15. O-O-O {[%clk 1:03:41]} 15... dxe4 {[%clk 1:28:17]} 16. g5 {[%clk
1:01:18]} 16... Nf5 {[%clk 1:27:30]} 17. gxf6 {[%clk 0:59:45]} 17... Qxf6 {[%clk
1:27:58]} 18. Rh2 {[%clk 0:57:38]} 18... e3 {[%clk 1:24:47]} 19. Be1 {[%clk
0:54:04]} 19... Nd4 {[%clk 1:25:08]} 20. Rxd4 {[%clk 0:51:50]} 20... Qxd4 {[%clk
1:25:34]} 21. Qa4 {[%clk 0:49:45]} 21... Rxf4 {[%clk 1:19:28]} 22. Qxd4 {[%clk
0:49:39]} 22... Bxd4 {[%clk 1:19:55]} 23. Bg3 {[%clk 0:45:04]} 23... Raf8 {[%clk
1:09:01]} 24. Kc2 {[%clk 0:39:44]} 24... Rf2 {[%clk 1:06:52]} 25. Kd3 {[%clk
0:35:22]} 25... e5 {[%clk 0:32:07]} 26. Bd1 {[%clk 0:33:44]} 26... Rxh2 {[%clk
0:29:53]} 27. Bxh2 {[%clk 0:32:37]} 27... Rf2 {[%clk 0:30:16]} 28. Bb3+ {[%clk
0:31:57]} 28... Kf8 {[%clk 0:22:29]} 29. Bg3 {[%clk 0:32:19]} 29... Rd2+ {[%clk
0:14:10]} 30. Kc4 {[%clk 0:32:40]} 30... Bxc3 {[%clk 0:11:44]} 31. bxc3 {[%clk
0:31:38]} 31... Bd5+ {[%clk 0:11:16]} 32. Kc5 {[%clk 0:30:51]} 32... Bxb3 {[%clk
0:11:42]} 33. axb3 {[%clk 0:30:55]} 33... Rg2 {[%clk 0:12:08]} 34. Ne2 {[%clk
0:30:10]} 34... Rxe2 {[%clk 0:12:33]} 35. Bxe5 {[%clk 0:30:34]} 35... Rg2 {[%clk
0:12:53]} 0-1

[Variant "Standard"]
[Site "Europe Echecs"]

[Event "Open Cappelle-la-Grande"]
[Date "2025.02.15"]
[White "Petriashvili, Nikoloz"]
[Black "Bocquenet-Drouode, Hugo"]
[WhiteElo "2450"]
[BlackElo "2140"]
[Round "1.1.14"]
[Result "1-0"]
[TimeControl "40/5400+30:1800+30"]

1. Nf3 {[%clk 1:30:56]} 1... d5 {[%clk 1:30:42]} 2. g3 {[%clk 1:31:23]} 2... g6
{[%clk 1:31:06]} 3. Bg2 {[%clk 1:31:31]} 3... Bg7 {[%clk 1:31:30]} 4. d4 {[%clk
1:31:12]} 4... Nf6 {[%clk 1:31:50]} 5. O-O {[%clk 1:31:29]} 5... O-O {[%clk
1:32:08]} 6. c3 {[%clk 1:31:57]} 6... c6 {[%clk 1:27:15]} 7. Bf4 {[%clk
1:31:22]} 7... Bf5 {[%clk 1:26:07]} 8. Qb3 {[%clk 1:28:14]} 8... Qc8 {[%clk
1:23:45]} 9. Nbd2 {[%clk 1:28:08]} 9... Nbd7 {[%clk 1:23:45]} 10. c4 {[%clk
1:28:27]} 10... dxc4 {[%clk 1:17:46]} 11. Nxc4 {[%clk 1:25:55]} 11... Nb6 {[%clk
1:15:39]} 12. Nxb6 {[%clk 1:24:17]} 12... axb6 {[%clk 1:15:44]} 13. Qxb6 {[%clk
1:24:41]} 13... Nd5 {[%clk 1:16:02]} 14. Qc5 {[%clk 1:23:25]} 14... Nxf4 {[%clk
1:16:12]} 15. gxf4 {[%clk 1:23:53]} 15... Qe6 {[%clk 1:16:12]} 16. e3 {[%clk
1:22:53]} 16... Rxa2 {[%clk 1:11:22]} 17. d5 {[%clk 1:21:23]} 17... cxd5 {[%clk
1:05:54]} 18. Rxa2 {[%clk 1:20:56]} 18... d4 {[%clk 1:06:14]} 19. Ra3 {[%clk
1:21:25]} 19... Rc8 {[%clk 1:04:15]} 20. Qb4 {[%clk 1:20:35]} 20... Rc4 {[%clk
1:04:02]} 21. Qxb7 {[%clk 1:20:45]} 21... Be4 {[%clk 1:04:15]} 22. Ra8+ {[%clk
1:18:55]} 22... Bf8 {[%clk 1:04:33]} 23. Rxf8+ {[%clk 1:19:23]} 23... Kxf8
{[%clk 1:04:53]} 24. Qb8+ {[%clk 1:18:57]} 24... Rc8 {[%clk 1:04:34]} 25. Qe5
{[%clk 1:19:23]} 25... Qxe5 {[%clk 1:03:32]} 26. Nxe5 {[%clk 1:19:51]} 26...
Bxg2 {[%clk 1:03:53]} 27. Kxg2 {[%clk 1:20:19]} 27... Rc2 {[%clk 1:04:11]} 28.
exd4 {[%clk 1:20:45]} 28... Rxb2 {[%clk 1:04:34]} 29. Rc1 {[%clk 1:21:11]} 29...
Rb7 {[%clk 1:04:43]} 30. Rc8+ {[%clk 1:21:04]} 30... Kg7 {[%clk 1:04:53]} 31.
Rd8 {[%clk 1:21:31]} 31... Kf6 {[%clk 1:04:36]} 32. Kf3 {[%clk 1:21:36]} 32...
Ke6 {[%clk 1:04:09]} 33. Ke4 {[%clk 1:21:23]} 33... Rb4 {[%clk 1:02:58]} 34. Ra8
{[%clk 1:21:32]} 34... f5+ {[%clk 1:02:30]} 35. Ke3 {[%clk 1:21:58]} 35... Rb3+
{[%clk 1:02:40]} 36. Nd3 {[%clk 1:22:26]} 36... Kf6 {[%clk 1:02:49]} 37. Ra6+
{[%clk 1:22:47]} 37... Kg7 {[%clk 1:03:10]} 38. d5 {[%clk 1:23:13]} 38... Rb1
{[%clk 1:03:15]} 39. Nc5 {[%clk 1:22:51]} 39... Rd1 {[%clk 1:03:04]} 40. Ne6+
{[%clk 1:23:15]} 40... Kh6 {[%clk 1:03:01]} 41. Ke2 {[%clk 1:22:18]} 41... Rxd5
{[%clk 1:02:35]} 42. Ra3 {[%clk 1:22:46]} 42... Kh5 {[%clk 1:01:35]} 43. Rh3+
{[%clk 1:23:13]} 43... Kg4 {[%clk 1:01:58]} 44. Rxh7 {[%clk 1:23:42]} 44... Ra5
{[%clk 1:01:59]} 45. h3# {[%clk 1:24:03]} 1-0

[Variant "Standard"]
[Site "Europe Echecs"]